[Event "Titled Tuesday Blitz June 29 2021"]
[White "Iskusnyh"]
[Black "Jospem"]
[WhiteElo "2630"]
[BlackElo "2953"]
[Result "0-1"]
[Round "03"]
[TimeControl "180+1"]
[Date "2021.06.29"]
[WhiteClock "0:00:01"]
[BlackClock "0:00:07"]

1. d4 {[%clk 0:03:00]}  Nf6 {[%clk 0:02:59]} 2. c4 {[%clk 0:03:01]}  e6 {[%clk 0:02:59]} 3. g3 {[%clk 0:03:01]}  Bb4+ {[%clk 0:03:00]} 4. Bd2 {[%clk 0:03:00]}  Qe7 {[%clk 0:02:59]} 5. Bg2 {[%clk 0:02:59]}  O-O {[%clk 0:02:58]} 6. e3 {[%clk 0:02:56]}  Bxd2+ {[%clk 0:02:56]} 7. Qxd2 {[%clk 0:02:55]}  d6 {[%clk 0:02:57]} 8. Nc3 {[%clk 0:02:53]}  e5 {[%clk 0:02:56]} 9. Nge2 {[%clk 0:02:54]}  c6 {[%clk 0:02:54]} 10. h3 {[%clk 0:02:50]}  h5 {[%clk 0:02:48]} 11. O-O {[%clk 0:02:43]}  Re8 {[%clk 0:02:48]} 12. Rae1 {[%clk 0:02:23]}  Nbd7 {[%clk 0:02:31]} 13. f4 {[%clk 0:02:21]}  e4 {[%clk 0:02:20]} 14. d5 {[%clk 0:02:07]}  Nc5 {[%clk 0:02:04]} 15. dxc6 {[%clk 0:02:03]}  bxc6 {[%clk 0:02:05]} 16. Rd1 {[%clk 0:02:01]}  Rd8 {[%clk 0:02:00]} 17. b4 {[%clk 0:01:53]}  Na6 {[%clk 0:01:41]} 18. a3 {[%clk 0:01:44]}  Be6 {[%clk 0:01:32]} 19. Nd4 {[%clk 0:01:38]}  Rac8 {[%clk 0:01:27]} 20. Qe2 {[%clk 0:01:10]}  Bd7 {[%clk 0:01:20]} 21. Nb3 {[%clk 0:00:39]}  Nc7 {[%clk 0:01:14]} 22. Na5 {[%clk 0:00:36]}  Rb8 {[%clk 0:01:02]} 23. Qd2 {[%clk 0:00:33]}  d5 {[%clk 0:01:00]} 24. cxd5 {[%clk 0:00:23]}  Ncxd5 {[%clk 0:00:48]} 25. Nxd5 {[%clk 0:00:16]}  cxd5 {[%clk 0:00:49]} 26. Qd4 {[%clk 0:00:15]}  Bb5 {[%clk 0:00:49]} 27. Rf2 {[%clk 0:00:15]}  a6 {[%clk 0:00:47]} 28. Rc2 {[%clk 0:00:14]}  Rbc8 {[%clk 0:00:43]} 29. Rdc1 {[%clk 0:00:13]}  Qd7 {[%clk 0:00:42]} 30. Rc5 {[%clk 0:00:12]}  Kh7 {[%clk 0:00:37]} 31. Kh2 {[%clk 0:00:08]}  Rxc5 {[%clk 0:00:27]} 32. Rxc5 {[%clk 0:00:07]}  Qe6 {[%clk 0:00:24]} 33. Qe5 {[%clk 0:00:06]}  Re8 {[%clk 0:00:14]} 34. Qxe6 {[%clk 0:00:05]}  fxe6 {[%clk 0:00:14]} 35. Nb3 {[%clk 0:00:05]}  Bc4 {[%clk 0:00:08]} 36. Nd4 {[%clk 0:00:05]}  e5 {[%clk 0:00:09]} 37. fxe5 {[%clk 0:00:05]}  Nd7 {[%clk 0:00:10]} 38. Rc7 {[%clk 0:00:04]}  Nxe5 {[%clk 0:00:11]} 39. Nf5 {[%clk 0:00:04]}  Nf3+ {[%clk 0:00:09]} 40. Kh1 {[%clk 0:00:03]}  Kg6 {[%clk 0:00:06]} 41. g4 {[%clk 0:00:01]}  hxg4 {[%clk 0:00:06]} 42. hxg4 {[%clk 0:00:01]}  Kf6 {[%clk 0:00:07]} 0-1


[Site "https://www.chess.com"]

[Event "Titled Tuesday Blitz June 29 2021"]
[White "Sharpchess22"]
[Black "dmitrijiIM"]
[WhiteElo "2858"]
[BlackElo "2613"]
[Result "1-0"]
[Round "03"]
[TimeControl "180+1"]
[Date "2021.06.29"]
[WhiteClock "0:00:47"]
[BlackClock "0:00:06"]

1. d4 {[%clk 0:03:00]}  Nf6 {[%clk 0:02:59]} 2. Bg5 {[%clk 0:02:59]}  e6 {[%clk 0:02:56]} 3. e4 {[%clk 0:02:57]}  h6 {[%clk 0:02:56]} 4. Bxf6 {[%clk 0:02:56]}  Qxf6 {[%clk 0:02:57]} 5. c3 {[%clk 0:02:56]}  d6 {[%clk 0:02:57]} 6. Bd3 {[%clk 0:02:56]}  b6 {[%clk 0:02:58]} 7. Ne2 {[%clk 0:02:56]}  Bb7 {[%clk 0:02:58]} 8. O-O {[%clk 0:02:54]}  Nd7 {[%clk 0:02:59]} 9. a4 {[%clk 0:02:52]}  a5 {[%clk 0:02:56]} 10. Na3 {[%clk 0:02:49]}  Qd8 {[%clk 0:02:50]} 11. f4 {[%clk 0:02:48]}  Be7 {[%clk 0:02:50]} 12. e5 {[%clk 0:02:34]}  O-O {[%clk 0:02:29]} 13. Nc4 {[%clk 0:02:33]}  Ba6 {[%clk 0:02:26]} 14. Rf3 {[%clk 0:02:26]}  d5 {[%clk 0:02:19]} 15. Ne3 {[%clk 0:02:24]}  Bxd3 {[%clk 0:02:12]} 16. Qxd3 {[%clk 0:02:25]}  f5 {[%clk 0:02:12]} 17. exf6 {[%clk 0:02:22]}  Nxf6 {[%clk 0:02:13]} 18. f5 {[%clk 0:02:18]}  exf5 {[%clk 0:01:46]} 19. Nf4 {[%clk 0:02:15]}  Ne4 {[%clk 0:01:27]} 20. Ne6 {[%clk 0:02:14]}  Qd7 {[%clk 0:01:27]} 21. Nxf8 {[%clk 0:02:14]}  Rxf8 {[%clk 0:01:27]} 22. c4 {[%clk 0:01:56]}  dxc4 {[%clk 0:01:15]} 23. Qxc4+ {[%clk 0:01:56]}  Kh8 {[%clk 0:01:15]} 24. Qd5 {[%clk 0:01:56]}  Qxd5 {[%clk 0:00:55]} 25. Nxd5 {[%clk 0:01:57]}  Bd6 {[%clk 0:00:56]} 26. Re1 {[%clk 0:01:56]}  Kh7 {[%clk 0:00:54]} 27. Nxc7 {[%clk 0:01:25]}  Rc8 {[%clk 0:00:45]} 28. Rxf5 {[%clk 0:01:14]}  Ng5 {[%clk 0:00:28]} 29. Nb5 {[%clk 0:01:07]}  Bb4 {[%clk 0:00:28]} 30. Rd1 {[%clk 0:01:07]}  Ne4 {[%clk 0:00:26]} 31. Re5 {[%clk 0:01:04]}  Nd2 {[%clk 0:00:23]} 32. Re2 {[%clk 0:01:02]}  Nb3 {[%clk 0:00:21]} 33. d5 {[%clk 0:01:00]}  Nc1 {[%clk 0:00:17]} 34. Re6 {[%clk 0:00:55]}  Nb3 {[%clk 0:00:05]} 35. d6 {[%clk 0:00:53]}  Bc5+ {[%clk 0:00:05]} 36. Kh1 {[%clk 0:00:52]}  Nd4 {[%clk 0:00:05]} 37. Nxd4 {[%clk 0:00:48]}  Bxd4 {[%clk 0:00:06]} 38. d7 {[%clk 0:00:48]}  Rd8 {[%clk 0:00:06]} 39. Rxd4 {[%clk 0:00:47]} 1-0


[Site "https://www.chess.com"]

[Event "Titled Tuesday Blitz June 29 2021"]
[White "Tayson_7"]
[Black "Alexsur1981"]
[WhiteElo "2618"]
[BlackElo "2868"]
[Result "1/2-1/2"]
[Round "03"]
[TimeControl "180+1"]
[Date "2021.06.29"]
[WhiteClock "0:00:10"]
[BlackClock "0:00:12"]

1. e4 {[%clk 0:03:00]}  c5 {[%clk 0:02:58]} 2. Nc3 {[%clk 0:03:00]}  e6 {[%clk 0:02:57]} 3. Nge2 {[%clk 0:02:59]}  Nc6 {[%clk 0:02:57]} 4. g3 {[%clk 0:02:59]}  Nf6 {[%clk 0:02:56]} 5. Bg2 {[%clk 0:02:59]}  Be7 {[%clk 0:02:54]} 6. O-O {[%clk 0:02:59]}  O-O {[%clk 0:02:54]} 7. d4 {[%clk 0:02:59]}  cxd4 {[%clk 0:02:53]} 8. Nxd4 {[%clk 0:03:00]}  d6 {[%clk 0:02:53]} 9. Be3 {[%clk 0:02:59]}  Bd7 {[%clk 0:02:51]} 10. Ndb5 {[%clk 0:02:47]}  Qb8 {[%clk 0:02:50]} 11. h3 {[%clk 0:02:38]}  a6 {[%clk 0:02:49]} 12. Nd4 {[%clk 0:02:38]}  Qc7 {[%clk 0:02:47]} 13. g4 {[%clk 0:02:35]}  Nxd4 {[%clk 0:02:41]} 14. Bxd4 {[%clk 0:02:36]}  Bc6 {[%clk 0:02:42]} 15. Qd2 {[%clk 0:02:28]}  Rac8 {[%clk 0:02:37]} 16. Rae1 {[%clk 0:01:59]}  b5 {[%clk 0:02:33]} 17. a3 {[%clk 0:01:57]}  Nd7 {[%clk 0:02:32]} 18. f4 {[%clk 0:01:55]}  e5 {[%clk 0:02:29]} 19. Be3 {[%clk 0:01:31]}  exf4 {[%clk 0:02:29]} 20. Bxf4 {[%clk 0:01:32]}  Ne5 {[%clk 0:02:29]} 21. Re2 {[%clk 0:01:23]}  a5 {[%clk 0:02:22]} 22. Kh1 {[%clk 0:01:11]}  b4 {[%clk 0:02:18]} 23. axb4 {[%clk 0:01:12]}  axb4 {[%clk 0:02:19]} 24. Nd5 {[%clk 0:01:12]}  Bxd5 {[%clk 0:02:19]} 25. exd5 {[%clk 0:01:12]}  b3 {[%clk 0:02:10]} 26. cxb3 {[%clk 0:01:02]}  Qb6 {[%clk 0:02:06]} 27. Qe3 {[%clk 0:00:46]}  Qb8 {[%clk 0:02:01]} 28. Bxe5 {[%clk 0:00:40]}  dxe5 {[%clk 0:02:02]} 29. Qxe5 {[%clk 0:00:41]}  Bd6 {[%clk 0:02:02]} 30. Qe3 {[%clk 0:00:32]}  Rce8 {[%clk 0:01:57]} 31. Be4 {[%clk 0:00:31]}  g6 {[%clk 0:01:52]} 32. Qf3 {[%clk 0:00:30]}  Re5 {[%clk 0:01:30]} 33. Bc2 {[%clk 0:00:25]}  Rxe2 {[%clk 0:01:29]} 34. Qxe2 {[%clk 0:00:26]}  Qb4 {[%clk 0:01:23]} 35. Rf2 {[%clk 0:00:19]}  Qd4 {[%clk 0:01:22]} 36. Kg2 {[%clk 0:00:12]}  Qxd5+ {[%clk 0:01:16]} 37. Qf3 {[%clk 0:00:11]}  Qe5 {[%clk 0:01:15]} 38. Bd3 {[%clk 0:00:09]}  Kg7 {[%clk 0:01:14]} 39. Bc4 {[%clk 0:00:09]}  f6 {[%clk 0:01:14]} 40. Re2 {[%clk 0:00:09]}  Qd4 {[%clk 0:01:09]} 41. Qe3 {[%clk 0:00:09]}  Qxe3 {[%clk 0:00:58]} 42. Rxe3 {[%clk 0:00:10]}  Be5 {[%clk 0:00:59]} 43. Re2 {[%clk 0:00:10]}  Rb8 {[%clk 0:00:58]} 44. Kf3 {[%clk 0:00:09]}  Kh6 {[%clk 0:00:56]} 45. h4 {[%clk 0:00:08]}  Rd8 {[%clk 0:00:54]} 46. g5+ {[%clk 0:00:06]}  Kh5 {[%clk 0:00:50]} 47. Re4 {[%clk 0:00:04]}  Bxb2 {[%clk 0:00:41]} 48. gxf6 {[%clk 0:00:04]}  Bxf6 {[%clk 0:00:42]} 49. Kg3 {[%clk 0:00:05]}  Rd2 {[%clk 0:00:35]} 50. Be2+ {[%clk 0:00:05]}  Kh6 {[%clk 0:00:35]} 51. b4 {[%clk 0:00:04]}  Rb2 {[%clk 0:00:34]} 52. b5 {[%clk 0:00:04]}  Rb3+ {[%clk 0:00:35]} 53. Kg2 {[%clk 0:00:03]}  Kg7 {[%clk 0:00:33]} 54. h5 {[%clk 0:00:04]}  g5 {[%clk 0:00:34]} 55. Re6 {[%clk 0:00:03]}  Rb4 {[%clk 0:00:26]} 56. Rc6 {[%clk 0:00:03]}  g4 {[%clk 0:00:23]} 57. Bc4 {[%clk 0:00:03]}  Be5 {[%clk 0:00:15]} 58. h6+ {[%clk 0:00:03]}  Kf8 {[%clk 0:00:16]} 59. Kf1 {[%clk 0:00:03]}  g3 {[%clk 0:00:15]} 60. Kg2 {[%clk 0:00:03]}  Rb2+ {[%clk 0:00:15]} 61. Kh3 {[%clk 0:00:02]}  g2 {[%clk 0:00:14]} 62. Rc8+ {[%clk 0:00:03]}  Ke7 {[%clk 0:00:15]} 63. Rg8 {[%clk 0:00:04]}  Rc2 {[%clk 0:00:14]} 64. Bd5 {[%clk 0:00:03]}  Rc5 {[%clk 0:00:14]} 65. Bc6 {[%clk 0:00:03]}  Bf4 {[%clk 0:00:13]} 66. Rxg2 {[%clk 0:00:03]}  Bxh6 {[%clk 0:00:13]} 67. Kg4 {[%clk 0:00:03]}  Rg5+ {[%clk 0:00:06]} 68. Kf3 {[%clk 0:00:02]}  Rxg2 {[%clk 0:00:07]} 69. Kxg2 {[%clk 0:00:03]}  Be3 {[%clk 0:00:07]} 70. Kh3 {[%clk 0:00:04]}  Bb6 {[%clk 0:00:07]} 71. Kg4 {[%clk 0:00:05]}  Kd6 {[%clk 0:00:08]} 72. Kh3 {[%clk 0:00:06]}  Kc7 {[%clk 0:00:09]} 73. Kg2 {[%clk 0:00:07]}  Bc5 {[%clk 0:00:09]} 74. Kh3 {[%clk 0:00:08]}  Bb6 {[%clk 0:00:10]} 75. Kg2 {[%clk 0:00:09]}  Bc5 {[%clk 0:00:11]} 76. Kh3 {[%clk 0:00:10]}  Bb6 {[%clk 0:00:12]} 1/2-1/2


[Site "https://www.chess.com"]

[Event "Titled Tuesday Blitz June 29 2021"]
[White "dretch"]
[Black "Yurovskykh_Alexander"]
[WhiteElo "2824"]
[BlackElo "2593"]
[Result "1-0"]
[Round "03"]
[TimeControl "180+1"]
[Date "2021.06.29"]
[WhiteClock "0:00:08"]
[BlackClock "0:00:19"]

1. d4 {[%clk 0:03:00]}  d5 {[%clk 0:02:59]} 2. c4 {[%clk 0:03:00]}  dxc4 {[%clk 0:03:00]} 3. e3 {[%clk 0:02:59]}  Nf6 {[%clk 0:03:00]} 4. Bxc4 {[%clk 0:02:59]}  e6 {[%clk 0:03:00]} 5. Nf3 {[%clk 0:02:55]}  c5 {[%clk 0:03:00]} 6. O-O {[%clk 0:02:53]}  Nc6 {[%clk 0:03:01]} 7. Qe2 {[%clk 0:02:52]}  cxd4 {[%clk 0:02:59]} 8. Rd1 {[%clk 0:02:51]}  Be7 {[%clk 0:02:55]} 9. exd4 {[%clk 0:02:38]}  O-O {[%clk 0:02:54]} 10. Nc3 {[%clk 0:02:39]}  Na5 {[%clk 0:02:51]} 11. Bd3 {[%clk 0:02:27]}  b6 {[%clk 0:02:31]} 12. Qe5 {[%clk 0:02:26]}  Bd6 {[%clk 0:02:30]} 13. Qg5 {[%clk 0:02:25]}  Bb7 {[%clk 0:02:30]} 14. Ne5 {[%clk 0:02:19]}  Nd5 {[%clk 0:02:30]} 15. Qg3 {[%clk 0:02:14]}  f5 {[%clk 0:02:24]} 16. Bg5 {[%clk 0:02:06]}  Qe8 {[%clk 0:02:22]} 17. Bh6 {[%clk 0:01:32]}  Qe7 {[%clk 0:02:22]} 18. Nb5 {[%clk 0:01:29]}  Bb8 {[%clk 0:02:17]} 19. Rac1 {[%clk 0:01:28]}  a6 {[%clk 0:02:15]} 20. Bg5 {[%clk 0:01:16]}  Qe8 {[%clk 0:02:13]} 21. Nc3 {[%clk 0:01:15]}  Nxc3 {[%clk 0:01:50]} 22. bxc3 {[%clk 0:01:04]}  Nc6 {[%clk 0:01:50]} 23. Bf4 {[%clk 0:00:53]}  Nxe5 {[%clk 0:01:34]} 24. Bxe5 {[%clk 0:00:54]}  Qg6 {[%clk 0:01:32]} 25. Re1 {[%clk 0:00:37]}  Qxg3 {[%clk 0:01:24]} 26. hxg3 {[%clk 0:00:37]}  Kf7 {[%clk 0:01:21]} 27. Rb1 {[%clk 0:00:21]}  Ba7 {[%clk 0:01:07]} 28. c4 {[%clk 0:00:12]}  Rac8 {[%clk 0:01:06]} 29. c5 {[%clk 0:00:08]}  Rc6 {[%clk 0:00:48]} 30. Be2 {[%clk 0:00:06]}  b5 {[%clk 0:00:41]} 31. a4 {[%clk 0:00:06]}  Rcc8 {[%clk 0:00:32]} 32. axb5 {[%clk 0:00:06]}  axb5 {[%clk 0:00:33]} 33. Rxb5 {[%clk 0:00:06]}  Bc6 {[%clk 0:00:29]} 34. Ra5 {[%clk 0:00:06]}  Bb8 {[%clk 0:00:29]} 35. Bxb8 {[%clk 0:00:06]}  Rxb8 {[%clk 0:00:30]} 36. Bc4 {[%clk 0:00:07]}  Rfe8 {[%clk 0:00:28]} 37. Ra6 {[%clk 0:00:07]}  Rbc8 {[%clk 0:00:28]} 38. Rb6 {[%clk 0:00:07]}  Rc7 {[%clk 0:00:29]} 39. Rxc6 {[%clk 0:00:06]}  Rxc6 {[%clk 0:00:29]} 40. Bb5 {[%clk 0:00:07]}  Rcc8 {[%clk 0:00:26]} 41. Bxe8+ {[%clk 0:00:07]}  Rxe8 {[%clk 0:00:27]} 42. Kf1 {[%clk 0:00:07]}  Rd8 {[%clk 0:00:27]} 43. Rd1 {[%clk 0:00:07]}  Rd5 {[%clk 0:00:26]} 44. Ke2 {[%clk 0:00:06]}  Ke7 {[%clk 0:00:27]} 45. f4 {[%clk 0:00:05]}  h6 {[%clk 0:00:26]} 46. Kd3 {[%clk 0:00:05]}  Rd7 {[%clk 0:00:25]} 47. Ra1 {[%clk 0:00:06]}  Rb7 {[%clk 0:00:25]} 48. Kc3 {[%clk 0:00:06]}  g5 {[%clk 0:00:23]} 49. Ra6 {[%clk 0:00:07]}  gxf4 {[%clk 0:00:22]} 50. gxf4 {[%clk 0:00:08]}  Rb8 {[%clk 0:00:23]} 51. Kc4 {[%clk 0:00:08]}  Rg8 {[%clk 0:00:22]} 52. Ra7+ {[%clk 0:00:08]}  Kf6 {[%clk 0:00:23]} 53. Ra2 {[%clk 0:00:08]}  Ke7 {[%clk 0:00:22]} 54. Kb5 {[%clk 0:00:07]}  Rb8+ {[%clk 0:00:22]} 55. Kc6 {[%clk 0:00:07]}  Rb3 {[%clk 0:00:23]} 56. Rd2 {[%clk 0:00:07]}  h5 {[%clk 0:00:20]} 57. d5 {[%clk 0:00:07]}  exd5 {[%clk 0:00:20]} 58. Rxd5 {[%clk 0:00:07]}  Ke6 {[%clk 0:00:20]} 59. Re5+ {[%clk 0:00:07]}  Kf6 {[%clk 0:00:21]} 60. Kd6 {[%clk 0:00:07]}  Rb2 {[%clk 0:00:21]} 61. c6 {[%clk 0:00:07]}  Rxg2 {[%clk 0:00:20]} 62. c7 {[%clk 0:00:08]}  Rc2 {[%clk 0:00:20]} 63. Rc5 {[%clk 0:00:08]}  Rd2+ {[%clk 0:00:21]} 64. Kc6 {[%clk 0:00:08]}  Ra2 {[%clk 0:00:19]} 65. c8=Q {[%clk 0:00:08]} 1-0


[Site "https://www.chess.com"]

[Event "Titled Tuesday Blitz June 29 2021"]
[White "grzechu96"]
[Black "Alexander_Moskalenko"]
[WhiteElo "2623"]
[BlackElo "2916"]
[Result "1/2-1/2"]
[Round "03"]
[TimeControl "180+1"]
[Date "2021.06.29"]
[WhiteClock "0:00:02"]
[BlackClock "0:00:17"]

1. e4 {[%clk 0:03:00]}  e5 {[%clk 0:02:23]} 2. Nf3 {[%clk 0:03:00]}  Nc6 {[%clk 0:02:22]} 3. Bc4 {[%clk 0:03:00]}  Nf6 {[%clk 0:02:20]} 4. d3 {[%clk 0:02:58]}  Bc5 {[%clk 0:02:20]} 5. c3 {[%clk 0:02:55]}  O-O {[%clk 0:02:19]} 6. b4 {[%clk 0:02:55]}  Bb6 {[%clk 0:02:18]} 7. a4 {[%clk 0:02:54]}  a6 {[%clk 0:02:12]} 8. Bg5 {[%clk 0:02:54]}  h6 {[%clk 0:02:11]} 9. Bh4 {[%clk 0:02:54]}  d6 {[%clk 0:02:12]} 10. Nbd2 {[%clk 0:02:53]}  Be6 {[%clk 0:02:12]} 11. O-O {[%clk 0:02:53]}  g5 {[%clk 0:02:06]} 12. Bg3 {[%clk 0:02:53]}  Ne7 {[%clk 0:02:06]} 13. h4 {[%clk 0:02:40]}  g4 {[%clk 0:02:00]} 14. Nh2 {[%clk 0:02:40]}  h5 {[%clk 0:01:44]} 15. Kh1 {[%clk 0:02:40]}  Ng6 {[%clk 0:01:44]} 16. f3 {[%clk 0:02:32]}  Kg7 {[%clk 0:01:39]} 17. Bxe6 {[%clk 0:01:51]}  fxe6 {[%clk 0:01:40]} 18. Nc4 {[%clk 0:01:51]}  Ba7 {[%clk 0:01:38]} 19. d4 {[%clk 0:01:52]}  exd4 {[%clk 0:01:30]} 20. cxd4 {[%clk 0:01:51]}  b5 {[%clk 0:01:23]} 21. Ne3 {[%clk 0:01:38]}  bxa4 {[%clk 0:01:13]} 22. Rxa4 {[%clk 0:01:35]}  Bb6 {[%clk 0:01:14]} 23. Qd3 {[%clk 0:01:25]}  Qd7 {[%clk 0:01:14]} 24. Rxa6 {[%clk 0:01:22]}  Rxa6 {[%clk 0:01:09]} 25. Qxa6 {[%clk 0:01:23]}  Bxd4 {[%clk 0:01:10]} 26. Qd3 {[%clk 0:01:22]}  Bxe3 {[%clk 0:01:07]} 27. Qxe3 {[%clk 0:01:22]}  e5 {[%clk 0:01:08]} 28. Qg5 {[%clk 0:01:19]}  Qe7 {[%clk 0:01:01]} 29. Re1 {[%clk 0:01:01]}  gxf3 {[%clk 0:00:58]} 30. gxf3 {[%clk 0:01:01]}  Qe6 {[%clk 0:00:59]} 31. Rg1 {[%clk 0:00:58]}  Kf7 {[%clk 0:00:56]} 32. b5 {[%clk 0:00:43]}  Rg8 {[%clk 0:00:56]} 33. Qc1 {[%clk 0:00:35]}  Ne8 {[%clk 0:00:53]} 34. Bf2 {[%clk 0:00:09]}  Ne7 {[%clk 0:00:53]} 35. Rxg8 {[%clk 0:00:07]}  Nxg8 {[%clk 0:00:54]} 36. Qg5 {[%clk 0:00:06]}  Ngf6 {[%clk 0:00:54]} 37. Be3 {[%clk 0:00:06]}  Qc4 {[%clk 0:00:54]} 38. Kg2 {[%clk 0:00:05]}  Qxb5 {[%clk 0:00:52]} 39. Nf1 {[%clk 0:00:05]}  Ng7 {[%clk 0:00:48]} 40. Ng3 {[%clk 0:00:05]}  Ne6 {[%clk 0:00:44]} 41. Qh6 {[%clk 0:00:05]}  Qb2+ {[%clk 0:00:44]} 42. Kh3 {[%clk 0:00:05]}  Qb1 {[%clk 0:00:39]} 43. Bg5 {[%clk 0:00:05]}  Ne8 {[%clk 0:00:16]} 44. Qxh5+ {[%clk 0:00:05]}  Kf8 {[%clk 0:00:17]} 45. Qh8+ {[%clk 0:00:05]}  Kf7 {[%clk 0:00:17]} 46. Qh5+ {[%clk 0:00:04]}  Kf8 {[%clk 0:00:17]} 47. Qh8+ {[%clk 0:00:03]}  Kf7 {[%clk 0:00:17]} 48. Qh5+ {[%clk 0:00:02]} 1/2-1/2


[Site "https://www.chess.com"]

[Event "Titled Tuesday Blitz June 29 2021"]
[White "mbojan"]
[Black "FairChess_on_YouTube"]
[WhiteElo "2659"]
[BlackElo "2988"]
[Result "0-1"]
[Round "03"]
[TimeControl "180+1"]
[Date "2021.06.29"]
[WhiteClock "0:00:04"]
[BlackClock "0:00:20"]

1. e4 {[%clk 0:03:00]}  c5 {[%clk 0:02:56]} 2. Nf3 {[%clk 0:03:00]}  e6 {[%clk 0:02:53]} 3. d4 {[%clk 0:03:01]}  cxd4 {[%clk 0:02:54]} 4. Nxd4 {[%clk 0:03:01]}  a6 {[%clk 0:02:54]} 5. c4 {[%clk 0:03:00]}  Nf6 {[%clk 0:02:53]} 6. Nc3 {[%clk 0:03:00]}  Bb4 {[%clk 0:02:53]} 7. Bd3 {[%clk 0:02:56]}  Nc6 {[%clk 0:02:51]} 8. Nxc6 {[%clk 0:02:55]}  dxc6 {[%clk 0:02:51]} 9. e5 {[%clk 0:02:55]}  Nd7 {[%clk 0:02:28]} 10. f4 {[%clk 0:02:52]}  O-O {[%clk 0:02:06]} 11. Qc2 {[%clk 0:02:38]}  Nc5 {[%clk 0:01:56]} 12. Be2 {[%clk 0:01:49]}  Qd4 {[%clk 0:01:44]} 13. a3 {[%clk 0:01:44]}  Bxc3+ {[%clk 0:01:15]} 14. bxc3 {[%clk 0:01:13]}  Qe4 {[%clk 0:01:16]} 15. Qxe4 {[%clk 0:01:06]}  Nxe4 {[%clk 0:01:17]} 16. Bf3 {[%clk 0:01:07]}  f5 {[%clk 0:01:09]} 17. exf6 {[%clk 0:00:49]}  Nxf6 {[%clk 0:01:08]} 18. Be3 {[%clk 0:00:49]}  e5 {[%clk 0:01:02]} 19. fxe5 {[%clk 0:00:46]}  Ng4 {[%clk 0:01:02]} 20. Bc5 {[%clk 0:00:35]}  Re8 {[%clk 0:01:00]} 21. O-O {[%clk 0:00:04]}  Nxe5 {[%clk 0:01:00]} 22. Rae1 {[%clk 0:00:04]}  Nxf3+ {[%clk 0:00:54]} 23. gxf3 {[%clk 0:00:05]}  Bh3 {[%clk 0:00:50]} 24. Rxe8+ {[%clk 0:00:03]}  Rxe8 {[%clk 0:00:51]} 25. Rd1 {[%clk 0:00:03]}  Re2 {[%clk 0:00:49]} 26. Bf2 {[%clk 0:00:03]}  Rc2 {[%clk 0:00:46]} 27. c5 {[%clk 0:00:03]}  Rxc3 {[%clk 0:00:45]} 28. f4 {[%clk 0:00:03]}  Rxa3 {[%clk 0:00:44]} 29. Bh4 {[%clk 0:00:02]}  Kf7 {[%clk 0:00:39]} 30. Rb1 {[%clk 0:00:02]}  Bc8 {[%clk 0:00:30]} 31. f5 {[%clk 0:00:02]}  Rf3 {[%clk 0:00:28]} 32. f6 {[%clk 0:00:02]}  gxf6 {[%clk 0:00:27]} 33. Rd1 {[%clk 0:00:02]}  Be6 {[%clk 0:00:26]} 34. Bg3 {[%clk 0:00:02]}  Bd5 {[%clk 0:00:25]} 35. Rb1 {[%clk 0:00:02]}  Rb3 {[%clk 0:00:25]} 36. Ra1 {[%clk 0:00:03]}  Rb5 {[%clk 0:00:24]} 37. Bd6 {[%clk 0:00:03]}  Rb2 {[%clk 0:00:22]} 38. h4 {[%clk 0:00:02]}  Kg6 {[%clk 0:00:21]} 39. Re1 {[%clk 0:00:01]}  a5 {[%clk 0:00:20]} 40. Ra1 {[%clk 0:00:01]}  Ra2 {[%clk 0:00:20]} 41. Rb1 {[%clk 0:00:01]}  a4 {[%clk 0:00:20]} 42. Rxb7 {[%clk 0:00:01]}  a3 {[%clk 0:00:21]} 43. Ra7 {[%clk 0:00:02]}  Rg2+ {[%clk 0:00:19]} 44. Kf1 {[%clk 0:00:02]}  a2 {[%clk 0:00:20]} 45. Bf8 {[%clk 0:00:01]}  Rc2 {[%clk 0:00:19]} 46. h5+ {[%clk 0:00:01]}  Kxh5 {[%clk 0:00:19]} 47. Rxh7+ {[%clk 0:00:02]}  Kg6 {[%clk 0:00:19]} 48. Rg7+ {[%clk 0:00:02]}  Kf5 {[%clk 0:00:19]} 49. Ra7 {[%clk 0:00:03]}  Rc1+ {[%clk 0:00:19]} 50. Ke2 {[%clk 0:00:04]}  a1=Q {[%clk 0:00:20]} 0-1


[Site "https://www.chess.com"]